bitfinex-derivatives/quotes_SOLF0:USTF0_20260217
["timestamp","ask_amount","ask_price","bid_price","bid_amount"]
[1771353769246,10.5785,85.125,85.073,10.5849]
[1771353769950,15.52465847,85.125,85.073,10.5849]
[1771353770152,10.5792,85.119,85.073,10.5849]
[1771353771641,4.94615847,85.125,85.082,10.5837]
[1771353772241,4.94615847,85.125,85.05,5.91833744]
[1771353772242,10.5788,85.123,85.061,10.46370462]
[1771353772452,4.94615847,85.125,85.065,10.46370462]
[1771353772750,4.94615847,85.125,85.061,10.46370462]
[1771353772952,10.5786,85.124,85.08,10.5839]
[1771353773654,4.94615847,85.125,85.086,10.5833]
[1771353774054,5.91833744,85.14,85.07,5.91833744]
[1771353774248,5.91833744,85.14,85.074,10.46370462]
[1771353774452,10.5769,85.138,85.092,10.5825]
[1771353775646,5.91833744,85.16,85.084,10.5835]
[1771353775647,4.97213485,85.13,85.084,10.5835]
[1771353776053,4.97213485,85.13,85.074,10.46370462]
[1771353776353,4.97213485,85.13,85.075,10.46370462]
[1771353776552,4.97213485,85.13,85.091,10.5827]
[1771353777656,4.97213485,85.13,85.083,10.5836]
[1771353777850,4.97213485,85.13,85.068,10.46370462]
[1771353778047,4.97213485,85.13,85.064,10.46370462]
[1771353778245,4.97213485,85.13,85.065,10.46370462]
[1771353779054,4.97713707,85.128,85.069,10.46370462]
[1771353779255,4.97713707,85.128,85.073,10.46370462]
[1771353779955,10.5769,85.138,85.073,10.46370462]
[1771353780155,10.5769,85.138,85.074,10.46370462]
[1771353780556,10.5777,85.132,85.074,10.46370462]
[1771353780754,4.97713707,85.14,85.078,10.46370462]
[1771353781055,4.97713707,85.14,85.083,10.46370462]
[1771353781357,4.97713707,85.14,85.084,10.46370462]
[1771353781954,10.5759,85.146,85.087,10.46370462]
[1771353782355,10.5759,85.146,85.088,10.46370462]
[1771353782754,10.5759,85.146,85.102,10.5813]
[1771353783050,15.61700563,85.153,85.102,10.5813]
[1771353783359,5.04200563,85.152,85.095,10.5822]
[1771353784656,10.5755,85.15,85.102,10.5812]
[1771353784852,15.61425669,85.15,85.102,10.5812]
[1771353785055,5.03875669,85.149,85.075,10.46370462]
[1771353785354,5.03875669,85.149,85.079,10.46370462]
[1771353785551,10.5792,85.12,85.075,10.46370462]
[1771353785950,5.03875669,85.139,85.074,10.46370462]
[1771353786156,5.03875669,85.139,85.055,85.62]
[1771353786157,5.03875669,85.139,85.073,10.46370462]
[1771353787252,5.03325911,85.138,85.073,10.46370462]
[1771353787559,5.03325911,85.12,85.074,10.46370462]
[1771353787755,5.03325911,85.12,85.07,10.46370462]
[1771353787957,10.5807,85.108,85.069,10.46370462]
[1771353788151,10.5807,85.108,85.07,10.46370462]
[1771353788462,10.5807,85.108,85.068,10.5855]
[1771353789061,1.98923292,85.1,85.06,10.46370462]
[1771353789352,1.98923292,85.08,85.05,10.46370462]
[1771353789552,1.98923292,85.08,85.03,1.98923292]
[1771353789553,1.98923292,85.08,85.046,10.46370462]
[1771353789956,10.5832,85.088,85.045,10.5884]
[1771353790152,1.98923292,85.06,85.037,10.46370462]
[1771353790355,1.98923292,85.06,85.031,10.46370462]
[1771353790555,1.98923292,85.06,85.03,10.46370462]
[1771353791258,1.98923292,85.06,85.028,10.46370462]
[1771353791456,1.98923292,85.07,85.028,10.46370462]
[1771353791962,5.02426032,85.069,85.018,4.62e-06]
[1771353792255,5.02426032,85.069,85.01,1.98923292]
[1771353792559,5.02426032,85.069,85.02,1.98923292]
[1771353793261,5.02426032,85.069,85.02,12.58073292]
[1771353793754,10.5858,85.066,85.011,10.5925]
[1771353793958,1.98923292,85.06,85.01,1.98923292]
[1771353794158,5.02426032,85.069,85.02,1.98923292]
[1771353794656,1.98923292,85.08,85.03,1.98923292]
[1771353795765,1.98923292,85.08,85.03,12.57943292]
[1771353796055,1.99068985,85.08,85.03,12.58088985]
[1771353797864,10.5837,85.083,85.03,10.5902]
[1771353798060,10.5842,85.08,85.03,10.5902]
[1771353798562,4.95667887,85.082,85.01,5.9249781]
[1771353799664,4.95826702,85.08,85.024,10.5909]
[1771353800157,4.95826702,85.079,85.01,5.9249781]
[1771353800564,4.95826702,85.063,85.01,10.5926]
[1771353800758,4.95826702,85.063,84.996,84.0]
[1771353801458,4.95745519,85.078,85.01,5.9249781]
[1771353801858,4.95745519,85.078,85.024,10.591]
[1771353802762,4.9440312,85.076,85.024,10.591]
[1771353803260,5.9249781,85.08,85.01,5.9249781]
[1771353803565,4.9440312,85.092,85.017,14.17889396]
[1771353803863,4.9440312,85.092,85.016,14.17889396]
[1771353804257,10.5813,85.103,85.03,5.9249781]
[1771353804665,10.5808,85.106,85.057,10.5869]
[1771353804960,15.42809967,85.106,85.057,10.5869]
[1771353805162,4.84729967,85.105,85.035,83.8]
[1771353805354,4.84729967,85.105,85.056,10.587]
[1771353806654,4.84729967,85.105,85.032,97.85889396]
[1771353806960,4.84729967,85.105,85.033,83.54]
[1771353807159,4.83452117,85.104,85.06,10.5865]
[1771353807563,4.83452117,85.099,85.033,83.54]
[1771353807860,4.83452117,85.092,85.042,10.5887]
[1771353808061,4.83452117,85.092,85.033,83.54]
[1771353808462,4.83452117,85.107,85.033,83.54]
[1771353808659,4.83452117,85.107,85.064,10.586]
[1771353809964,4.83452117,85.107,85.056,10.587]
[1771353810663,4.83132963,85.105,85.056,10.587]
[1771353811863,10.5799,85.114,85.065,10.5858]
[1771353812168,4.83132963,85.113,85.065,10.5858]
[1771353813070,4.83132963,85.113,85.057,10.5869]
[1771353814666,10.581,85.105,85.057,10.5869]
[1771353816374,4.82455138,85.112,85.063,10.5861]
[1771353817778,4.82269424,85.109,85.063,10.5861]
[1771353818469,10.5806,85.108,85.063,10.5861]
[1771353819573,4.82785726,85.107,85.063,10.5861]
[1771353820175,4.82785726,85.097,85.04,1.98948478]
[1771353820772,4.82785726,85.097,85.05,1.98948478]
[1771353821672,4.82785726,85.097,85.057,10.5869]
[1771353821973,4.89993903,85.095,85.05,1.98948478]
[1771353822472,4.89993903,85.095,85.06,1.98948478]
[1771353822990,10.5805,85.109,85.063,10.5861]
[1771353823292,21.1534,85.14,85.025,21.1817]
[1771353823293,4.88877319,85.108,85.07,1.98948478]
[1771353824688,4.88877319,85.108,85.07,12.57478478]
[1771353825584,95.1934,85.14,85.042,14.17889396]
[1771353825585,1.98948478,85.1,85.05,1.98948478]
[1771353825784,4.95912806,85.099,85.05,1.98948478]
[1771353826483,21.1534,85.14,85.025,21.1817]
[1771353826484,1.98948478,85.09,85.051,10.5876]
[1771353826990,10.5831,85.088,85.043,10.5886]
[1771353827378,1.98948478,85.09,85.04,1.98948478]
[1771353827579,4.95912806,85.096,85.05,1.98948478]
[1771353827783,4.95912806,85.096,85.054,10.5873]
[1771353827989,4.95287957,85.109,85.054,10.5873]
[1771353828890,10.5814,85.102,85.054,10.5873]
[1771353829093,15.53266156,85.102,85.054,10.5873]
[1771353829396,4.95126156,85.102,85.054,10.5873]
[1771353830788,4.95126156,85.102,85.053,10.5873]
[1771353832096,4.95126156,85.102,85.061,10.5863]
[1771353833797,1.98948478,85.1,85.061,10.5863]
[1771353834292,6.94770871,85.1,85.061,10.5863]
[1771353834494,4.95822393,85.099,85.053,10.5874]
[1771353834696,4.95822393,85.099,85.05,1.98948478]
[1771353835788,4.95822393,85.099,85.06,10.5865]
[1771353836697,4.95822393,85.099,85.06,12.57598478]
[1771353836898,4.95822393,85.099,85.06,10.5865]
[1771353838693,10.5805,85.109,85.066,10.5857]
[1771353838898,4.94711456,85.108,85.066,10.5857]
[1771353839496,4.94711456,85.108,85.073,10.5848]
[1771353840402,4.94711456,85.108,85.08,12.57348478]
[1771353840700,4.94711456,85.108,85.07,1.98948478]
[1771353840901,4.94475597,85.129,85.07,1.98948478]
[1771353841091,6.93424075,85.12,85.07,1.98948478]
[1771353841498,4.94475597,85.119,85.07,1.98948478]
[1771353841697,15.52425597,85.117,85.073,10.5848]
[1771353842201,4.94475597,85.116,85.073,10.5848]
[1771353843000,4.94475597,85.116,85.08,1.98948478]
[1771353843598,4.95036882,85.114,85.075,10.5846]
[1771353844199,4.95036882,85.103,85.06,1.98948478]
[1771353844400,4.95036882,85.099,85.05,81.94948478]
[1771353844703,4.95036882,85.099,85.063,10.5861]
[1771353845999,1.98948478,85.08,85.03,1.98948478]
[1771353846306,1.98948478,85.08,85.031,14.16797245]
[1771353846493,4.95125095,85.089,85.04,1.98948478]
[1771353847010,4.97915705,85.103,85.054,10.5872]
[1771353847201,4.97915705,85.103,85.06,1.98948478]
[1771353847507,4.97915705,85.099,85.05,1.98948478]
[1771353848505,4.97915705,85.098,85.05,12.57728478]
[1771353849801,4.97915705,85.098,85.05,10.5878]
[1771353850001,4.97915705,85.098,85.05,12.57728478]
[1771353850204,4.98193811,85.112,85.051,14.16797245]
[1771353850500,4.98193811,85.126,85.07,1.98948478]
[1771353851512,10.5793,85.119,85.076,10.5845]
[1771353851898,10.5793,85.119,85.077,10.62496294]
[1771353852309,10.5793,85.119,85.076,21.20946294]
[1771353852509,4.98193811,85.126,85.083,10.5836]
[1771353852803,4.98193811,85.126,85.078,10.62496294]
[1771353853205,1.98948478,85.12,85.078,10.62496294]
[1771353853910,6.97087056,85.12,85.078,10.62496294]
[1771353854107,6.97087056,85.12,85.084,10.5835]
[1771353854298,4.98138578,85.134,85.084,10.5835]
[1771353854502,1.98948478,85.13,85.086,10.62496294]
[1771353855102,1.98948478,85.13,85.085,10.62496294]
[1771353855308,1.98948478,85.13,85.084,10.62496294]
[1771353855507,10.578,85.129,85.088,10.583]
[1771353856011,10.578,85.129,85.084,10.62496294]
[1771353856312,15.54809017,85.129,85.081,10.5839]
[1771353856612,15.54809017,85.129,85.084,10.62496294]
[1771353857117,15.54809017,85.129,85.086,10.62496294]
[1771353857510,15.54809017,85.129,85.085,10.62496294]
[1771353857710,10.5767,85.14,85.095,10.5822]
[1771353857903,12.56496789,85.14,85.095,21.20716294]
[1771353858106,4.94625647,85.144,85.1,1.98826789]
[1771353858302,1.98826789,85.15,85.1,1.98826789]
[1771353859209,4.94625647,85.157,85.113,10.5799]
[1771353860706,15.52235038,85.156,85.113,10.5799]
[1771353861414,4.94775038,85.156,85.114,10.5798]
[1771353863015,4.94775038,85.156,85.12,1.98826789]
[1771353863804,4.94846918,85.153,85.11,1.98826789]
[1771353864710,4.94846918,85.153,85.111,10.5801]
[1771353864907,4.96309207,85.165,85.11,1.98826789]
[1771353865712,4.96309207,85.156,85.111,10.5801]
[1771353866016,1.98826789,85.15,85.111,10.5801]
[1771353866407,4.96309207,85.156,85.117,10.5794]
[1771353866604,4.96309207,85.156,85.11,1.98826789]
[1771353866812,1.98826789,85.15,85.1,1.98826789]
[1771353867011,1.98826789,85.15,85.109,10.5804]
[1771353867012,12.56366789,85.15,85.109,10.5804]
[1771353867212,10.5754,85.15,85.11,1.98826789]
[1771353867511,4.96309207,85.156,85.11,1.98826789]
[1771353867714,6.93213956,85.15,85.111,10.5801]
[1771353868015,4.94387167,85.15,85.111,10.5801]
[1771353868211,4.94387167,85.15,85.118,10.5793]
[1771353868612,4.94387167,85.15,85.111,10.5801]
[1771353869112,6.93213956,85.15,85.111,10.5801]
[1771353869415,4.949251,85.139,85.085,10.62496294]
[1771353869614,4.949251,85.119,85.07,1.98826789]
[1771353869815,4.949251,85.119,85.08,10.5839]
[1771353870216,4.949251,85.119,85.08,12.57216789]
[1771353870407,4.949251,85.143,85.101,10.5813]
[1771353871617,4.949251,85.143,85.11,1.98826789]
[1771353873819,4.949251,85.143,85.101,10.5813]
[1771353875920,10.575,85.153,85.11,1.98826789]
[1771353877925,10.575,85.153,85.11,12.56846789]
[1771353879628,1.98826789,85.15,85.11,10.5802]
[1771353882624,4.96816079,85.157,85.116,10.5795]
[1771353883728,15.55408361,85.156,85.116,10.5795]
[1771353884227,4.97948361,85.155,85.116,10.5795]
[1771353885124,4.97948361,85.155,85.124,10.5785]
[1771353887128,5.01211106,85.149,85.114,10.5798]
[1771353887332,5.01211106,85.149,85.09,1.98826789]
[1771353887525,5.01211106,85.149,85.1,1.98826789]
[1771353887833,12.56246789,85.16,85.117,10.5794]
[1771353888030,5.01211106,85.159,85.117,10.5794]
[1771353889036,1.98826789,85.15,85.117,10.5794]
[1771353889835,1.98826789,85.13,85.091,10.55846297]
[1771353890132,1.98826789,85.13,85.08,1.98826789]
[1771353890339,1.98826789,85.13,85.093,10.5823]
[1771353891635,7.006678,85.13,85.093,10.5823]
[1771353893142,5.00143772,85.119,85.082,10.5837]
[1771353893335,1.98826789,85.11,85.073,10.55846297]
[1771353893636,1.98826789,85.11,85.068,10.55846297]
[1771353893839,5.00143772,85.109,85.068,10.55846297]
[1771353894030,5.00143772,85.137,85.056,10.55846297]
[1771353894231,1.98826789,85.11,85.06,1.98826789]
[1771353894936,1.98826789,85.11,85.064,10.586]
[1771353895243,1.98826789,85.1,85.058,10.55846297]
[1771353895435,5.00549352,85.099,85.053,10.55846297]
[1771353896130,74.0,85.13,85.053,10.55846297]
[1771353896131,1.98826789,85.09,85.053,10.55846297]
[1771353896330,1.98826789,85.09,85.052,10.55846297]
[1771353896541,1.98826789,85.09,85.049,254.43452174]
[1771353896542,1.98826789,85.09,85.053,10.55846297]
[1771353897142,1.98826789,85.09,85.057,10.55846297]
[1771353897342,1.98826789,85.09,85.049,254.43452174]
[1771353897343,1.98826789,85.09,85.056,10.55846297]
[1771353897543,5.00549352,85.098,85.057,10.5869]
[1771353899938,1.98826789,85.11,85.066,10.5858]
[1771353900438,1.98826789,85.13,85.08,1.98826789]
[1771353900643,7.03196469,85.13,85.08,1.98826789]
[1771353900943,5.03531267,85.145,85.1,1.98826789]
[1771353901242,5.03531267,85.159,85.11,1.98826789]
[1771353901938,5.03531267,85.159,85.097,74.02]
[1771353902144,1.98826789,85.14,85.097,74.02]
[1771353902341,1.98826789,85.12,85.076,10.55846297]
[1771353902544,5.03531267,85.117,85.07,81.66826789]
[1771353902737,1.98826789,85.1,85.059,10.55846297]
[1771353903039,21.1491,85.157,85.074,10.5847]
[1771353903040,1.98826789,85.12,85.074,10.5847]
[1771353903241,5.04254127,85.124,85.08,1.98826789]
[1771353903443,1.98826789,85.13,85.08,1.98826789]
[1771353903639,5.04254127,85.139,85.094,10.5822]
[1771353904037,5.04254127,85.156,85.11,1.98826789]
[1771353904442,5.04254127,85.156,85.111,10.5801]
[1771353905139,1.98826789,85.16,85.11,1.98826789]
[1771353905339,10.5731,85.168,85.121,10.5789]
[1771353905535,5.02760784,85.159,85.11,1.98826789]
[1771353906045,5.02760784,85.159,85.096,79.7]
[1771353906339,5.02760784,85.159,85.118,10.5793]
[1771353906547,5.02760784,85.159,85.097,79.6]
[1771353907341,5.02760784,85.159,85.098,79.68]
[1771353907544,5.02760784,85.159,85.116,10.5795]
[1771353908544,5.04607371,85.155,85.098,79.68]
[1771353909243,5.04607371,85.155,85.09,5.91397123]
[1771353909244,10.575,85.153,85.105,10.5808]
[1771353910239,5.91397123,85.16,85.093,79.66]
[1771353910240,10.5757,85.148,85.097,10.5819]
[1771353910540,5.05922232,85.147,85.097,10.5819]
[1771353910741,10.5777,85.131,85.082,10.5837]
[1771353910944,10.5777,85.131,85.063,79.62]
[1771353910945,5.05372143,85.13,85.063,79.62]
[1771353912336,5.05372143,85.13,85.052,14.16218856]
[1771353912535,5.05372143,85.112,85.053,79.76]
[1771353912742,5.05372143,85.112,85.049,334.29452174]
[1771353913345,5.05372143,85.112,85.073,10.5848]
[1771353913545,10.5785,85.125,85.073,10.5848]
[1771353914039,10.5792,85.12,85.059,80.42]
[1771353914248,5.03352187,85.124,85.059,80.42]
[1771353914747,5.03449364,85.121,85.049,254.43452174]
[1771353914947,5.03449364,85.121,85.059,80.58]
[1771353915542,10.5803,85.111,85.059,91.1666]
[1771353915749,5.03449364,85.109,85.042,14.16218856]
[1771353915946,5.03449364,85.109,85.041,80.74]
[1771353916140,10.5813,85.103,85.059,10.5866]
[1771353917146,5.03449364,85.109,85.048,80.78]
[1771353917147,10.5821,85.096,85.051,10.5876]
[1771353917355,5.03367817,85.095,85.048,80.78]
[1771353917552,5.03367817,85.095,85.031,14.16218856]
[1771353917760,5.03367817,85.153,85.06,5.91397123]
[1771353917951,5.03367817,85.149,85.07,5.91676069]
[1771353918147,14.6286726,85.199,85.054,21.26799867]
[1771353918148,5.03367817,85.169,85.09,5.91676069]
[1771353918748,5.03367817,85.169,85.118,10.5793]
[1771353919755,5.03367817,85.169,85.109,10.5804]
[1771353919950,5.03367817,85.169,85.08,5.91676069]
[1771353919951,15.59925162,85.154,85.08,5.91676069]
[1771353920153,15.59925162,85.154,85.106,10.5807]
[1771353920154,5.02435162,85.154,85.106,10.5807]
[1771353921964,10.5751,85.153,85.098,10.5818]
[1771353922658,10.5755,85.15,85.098,10.5818]
[1771353923652,5.27354954,85.139,85.097,80.8]
[1771353923858,5.27354954,85.139,85.069,81.2]
[1771353924354,5.27354954,85.119,85.048,81.22]
[1771353924758,5.27354954,85.119,85.076,10.5845]
[1771353926159,10.578,85.129,85.076,10.5845]
[1771353926364,10.578,85.129,85.066,81.2]
[1771353926365,5.91676069,85.13,85.083,10.5836]
[1771353926565,11.16976632,85.13,85.083,10.5836]
[1771353927666,21.74766632,85.13,85.083,10.5836]
[1771353928065,5.25255933,85.129,85.083,10.5836]
[1771353928764,5.25255933,85.129,85.074,10.5847]
[1771353928961,10.5794,85.118,85.066,81.2]
[1771353929167,10.5794,85.118,85.066,81.0]
[1771353930058,5.25142799,85.127,85.066,81.0]
[1771353930458,10.5772,85.136,85.081,10.5839]
[1771353930663,5.25142799,85.147,85.082,81.18]
[1771353931668,10.5762,85.144,85.091,10.5827]
[1771353932064,5.25142799,85.147,85.082,81.18]
[1771353932464,10.5758,85.147,85.098,10.5818]
[1771353932664,5.24745372,85.159,85.098,10.5818]
[1771353933663,10.5755,85.149,85.098,10.5818]
[1771353935266,10.5755,85.149,85.105,10.5809]
[1771353935473,10.5746,85.156,85.105,10.5809]
[1771353936971,5.24745372,85.159,85.112,10.58]
[1771353940374,5.19552671,85.156,85.091,80.48]
[1771353940878,5.19451683,85.156,85.091,80.48]
[1771353941370,5.19451683,85.156,85.087,14.16218856]
[1771353941575,5.19451683,85.156,85.092,80.52]
[1771353941770,10.5746,85.157,85.087,14.16218856]
[1771353941976,10.5746,85.157,85.088,80.54]
[1771353942378,5.19451683,85.139,85.088,80.54]
[1771353942572,5.19451683,85.139,85.037,21.1787]
[1771353942573,5.19451683,85.139,85.055,14.16218856]
[1771353942780,5.19451683,85.139,85.061,14.16218856]
[1771353942975,5.19451683,85.139,85.062,80.54]
[1771353943275,10.5784,85.126,85.079,10.5841]
[1771353943572,5.19451683,85.139,85.063,80.58]
[1771353944066,10.5794,85.118,85.071,10.5851]
[1771353944266,5.19142379,85.123,85.063,80.58]
[1771353944671,5.19142379,85.123,85.055,14.16218856]
[1771353944974,5.19142379,85.123,85.056,80.66]
[1771353945373,5.17273207,85.117,85.056,80.66]
[1771353945567,5.17273207,85.117,85.05,80.68]
[1771353945766,5.17273207,85.107,85.052,10.5874]
[1771353945972,5.17273207,85.107,85.05,80.68]
[1771353946175,5.17273207,85.107,85.034,14.16218856]
[1771353946372,5.17273207,85.107,85.038,14.16218856]
[1771353946874,5.16834456,85.104,85.034,14.16218856]
[1771353947067,5.16834456,85.099,85.035,80.78]
[1771353947274,5.16834456,85.099,85.027,14.16218856]
[1771353947472,5.16834456,85.099,85.026,80.76]
[1771353947674,5.16834456,85.074,85.013,14.16218856]
[1771353947978,5.16834456,85.074,85.01,80.88]
[1771353948778,5.16834456,85.074,85.029,10.5904]
[1771353949078,5.16834456,85.074,85.01,80.88]
[1771353950778,10.585,85.073,85.02,10.5914]
[1771353950974,5.16834456,85.074,85.01,80.88]
[1771353951180,5.91676069,85.08,85.01,80.88]
[1771353951386,5.15758128,85.095,85.02,5.91676069]
[1771353951883,10.5802,85.112,85.056,10.5869]
[1771353952182,10.5802,85.112,85.057,81.2]
[1771353952382,5.15758128,85.119,85.068,10.5854]
[1771353952784,5.91676069,85.13,85.06,5.91676069]
[1771353952984,10.578,85.129,85.076,10.5845]
[1771353953884,10.5789,85.122,85.068,10.5855]
[1771353954088,5.15470308,85.121,85.062,81.02]
[1771353954484,10.5792,85.119,85.062,81.02]
[1771353954682,5.91676069,85.13,85.062,81.02]
[1771353955087,5.13916492,85.129,85.07,10.5852]
[1771353956683,10.5788,85.123,85.07,10.5852]
[1771353957388,5.13916492,85.129,85.05,5.91676069]
[1771353957389,5.13916492,85.129,85.083,10.5836]
[1771353957685,5.14267798,85.146,85.07,5.91676069]
[1771353957884,5.14267798,85.146,85.099,10.5816]
[1771353960088,5.14267798,85.146,85.07,5.91676069]
[1771353960293,5.1439895,85.191,85.09,5.91676069]
[1771353960483,21.1405,85.192,85.09,5.91676069]
[1771353960484,5.1439895,85.169,85.09,5.91676069]
[1771353960995,5.1759523,85.146,85.082,74.04]
[1771353961193,5.1759523,85.146,85.082,74.02]
[1771353961589,10.577,85.137,85.084,10.5835]
[1771353961992,5.91676069,85.16,85.082,74.02]
[1771353962192,5.91676069,85.16,85.09,5.91676069]
[1771353962393,10.5743,85.159,85.107,10.5807]
[1771353962593,5.1759523,85.161,85.09,5.91676069]
[1771353962790,5.1759523,85.161,85.091,81.2]
[1771353963191,10.5742,85.16,85.107,10.5806]
[1771353963492,10.5742,85.16,85.092,10.51033482]
[1771353963891,10.5742,85.16,85.114,10.5798]
[1771353964391,10.573,85.169,85.11,5.91676069]
[1771353964995,10.573,85.169,85.121,10.5789]
[1771353965797,10.5718,85.179,85.128,10.578]
[1771353966293,10.5706,85.189,85.135,10.5772]
[1771353966495,15.73621268,85.189,85.135,10.5772]
[1771353966703,5.15037887,85.205,85.135,80.84]
[1771353966997,5.15037887,85.205,85.101,35.18]
[1771353966998,5.15037887,85.199,85.119,10.51033482]
[1771353967198,5.15037887,85.199,85.12,5.91676069]
[1771353967498,5.15037887,85.199,85.12,80.83676069]
[1771353967686,10.5704,85.19,85.137,10.577]
[1771353967893,5.15037887,85.199,85.12,80.83676069]
[1771353968897,10.5702,85.192,85.12,80.83676069]
[1771353969097,5.15037887,85.199,85.12,80.83676069]
[1771353969798,10.5699,85.194,85.145,10.576]
[1771353970000,10.5699,85.194,85.101,35.18]
[1771353970001,5.15037887,85.199,85.14,5.91676069]
[1771353970301,5.09464471,85.197,85.12,5.91676069]
[1771353970502,5.09464471,85.197,85.121,79.86]
[1771353970701,10.5714,85.182,85.138,10.5768]
[1771353970996,5.09464471,85.197,85.122,80.92]
[1771353971696,10.5699,85.195,85.145,10.5759]
[1771353972195,10.5699,85.195,85.152,10.5751]
[1771353972498,5.10626606,85.209,85.152,10.5751]
[1771353973300,5.09789491,85.191,85.143,74.0]
[1771353974299,5.09789491,85.182,85.126,80.94]
[1771353974504,5.09789491,85.182,85.1,5.91676069]
[1771353974705,5.09789491,85.182,85.101,80.96]
[1771353975104,5.09789491,85.182,85.12,5.91676069]
[1771353975299,10.5716,85.181,85.132,10.5775]
[1771353976598,5.09789491,85.182,85.132,10.5775]
[1771353976599,10.5724,85.175,85.132,10.5775]
[1771353976806,10.5724,85.175,85.125,81.0]
[1771353977206,5.09789491,85.182,85.1,5.91676069]
[1771353977412,5.09789491,85.182,85.117,81.08]
[1771353977800,5.10563217,85.158,85.1,5.91676069]
[1771353977999,5.91676069,85.2,85.072,81.14]
[1771353978000,5.10563217,85.149,85.072,81.14]
[1771353978405,5.10563217,85.149,85.08,5.91676069]
[1771353978599,5.10563217,85.149,85.081,81.3]
[1771353979003,15.68113217,85.149,85.099,10.5816]
[1771353979308,5.10563217,85.149,85.081,81.3]
[1771353979710,10.5761,85.144,85.092,10.5825]
[1771353979914,5.10563217,85.149,85.093,81.36]
[1771353980101,5.10512961,85.169,85.093,81.36]
[1771353980307,5.10512961,85.169,85.094,81.36]
[1771353980707,10.5751,85.152,85.104,10.581]
[1771353980912,10.5751,85.152,85.094,81.36]
[1771353981213,5.10512961,85.169,85.095,81.44]
[1771353981608,10.5753,85.151,85.103,10.5811]
[1771353981810,5.10512961,85.169,85.103,10.5811]
[1771353982114,5.1368419,85.149,85.085,81.5]
[1771353982316,10.5773,85.135,85.085,81.5]
[1771353982809,10.5764,85.142,85.098,10.5817]
[1771353984811,5.1368419,85.149,85.105,10.5809]
[1771353985009,5.1368419,85.149,85.085,81.5]
[1771353985709,10.5751,85.153,85.105,10.5809]
[1771353987218,5.14239534,85.165,85.097,10.5819]
[1771353987417,5.14239534,85.165,85.091,81.3]
[1771353987716,5.14084684,85.13,85.084,10.5835]
[1771353988814,5.14297102,85.158,85.09,10.5827]
[1771353989023,5.14297102,85.149,85.09,10.5827]
[1771353989219,5.14297102,85.149,85.076,81.16]
[1771353989718,5.14297102,85.129,85.06,5.91532767]
[1771353989914,5.14297102,85.129,85.061,74.0]
[1771353990820,10.5786,85.125,85.061,74.0]
[1771353991613,10.5786,85.125,85.073,10.5849]
[1771353993021,10.5786,85.125,85.079,10.5841]
[1771353993921,5.14926456,85.112,85.065,10.5859]
[1771353994109,5.14926456,85.112,85.061,74.0]
[1771353994110,5.14926456,85.109,85.061,74.0]
[1771353994515,5.14926456,85.109,85.03,81.1]
[1771353994711,5.15609372,85.089,85.026,10.47784364]
[1771353994917,5.15609372,85.089,85.018,81.1]
[1771353995122,5.15609372,85.089,85.018,91.57784364]
[1771353995319,5.15609372,85.089,85.021,10.47784364]
[1771353996017,5.15609372,85.089,85.042,10.5887]
[1771353996715,10.5813,85.102,85.049,10.5879]
[1771353997118,5.14399256,85.105,85.038,81.22]
[1771353997119,5.91532767,85.12,85.038,81.22]
[1771353997425,10.5794,85.118,85.05,5.91532767]
[1771353997618,10.5794,85.118,85.051,81.22]
[1771353997816,5.14399256,85.138,85.051,81.22]
[1771353998127,10.5775,85.133,85.07,5.91532767]
[1771353998314,5.14399256,85.138,85.071,81.26]
[1771353998516,5.14399256,85.156,85.071,81.26]
[1771353999029,5.14399256,85.156,85.09,5.91532767]
[1771353999225,5.14399256,85.156,85.106,10.5808]
[1771353999421,5.12290991,85.177,85.09,5.91532767]
[1771353999724,10.5724,85.174,85.122,10.5788]
[1771354000129,5.12290991,85.177,85.11,5.91532767]
[1771354000525,74.02,85.209,85.13,10.5778]
[1771354000526,10.5711,85.184,85.13,10.5778]
[1771354001819,10.5727,85.172,85.125,81.18]
[1771354002023,10.5727,85.172,85.117,10.5794]
[1771354002721,5.12423449,85.163,85.113,81.2]
[1771354003522,5.12423449,85.157,85.113,81.2]
[1771354004826,10.5749,85.154,85.113,81.2]
[1771354006026,5.11920771,85.153,85.113,81.2]
[1771354006325,5.11920771,85.151,85.09,87.51532767]
[1771354007122,10.5765,85.141,85.092,10.5825]